bitfinex/quotes_ETHUSD_20260305
["timestamp","ask_amount","ask_price","bid_price","bid_amount"]
[1772691120548,0.001,2111.6,2111.0,0.45331931]
[1772691120748,0.001,2111.8,2111.0,0.45331931]
[1772691120955,0.001,2111.8,2111.2,0.45331931]
[1772691121985,0.001,2112.2,2111.2,0.45331931]
[1772691122172,0.001,2112.2,2111.4,0.45331931]
[1772691122370,0.001,2112.2,2111.6,0.45331931]
[1772691122850,0.001,2112.2,2111.7,0.45331931]
[1772691123051,0.001,2112.2,2111.5,0.45331931]
[1772691123052,0.26852288,2112.1,2111.5,0.45331931]
[1772691123283,0.26852288,2112.1,2110.9,0.0011]
[1772691123284,0.26852288,2112.1,2111.0,0.45331931]
[1772691123975,0.47496126,2111.9,2111.0,0.45331931]
[1772691125088,1.18382422,2111.8,2111.1,1.63753606]
[1772691125271,1.65878548,2111.8,2111.1,1.63753606]
[1772691125462,1.18382422,2111.8,2111.2,0.45331931]
[1772691126698,0.47496126,2111.9,2111.2,0.45331931]
[1772691127066,1.65874937,2111.9,2111.3,1.63742389]
[1772691127702,1.65873971,2111.9,2111.3,1.63742389]
[1772691128285,0.47496126,2111.9,2111.3,1.63742389]
[1772691128476,1.18374777,2112.0,2111.4,0.45331931]
[1772691128911,0.47496126,2111.9,2111.2,1.63745611]
[1772691129210,1.65878548,2111.8,2111.2,1.63745611]
[1772691129606,1.65878548,2111.8,2111.2,1.63855611]
[1772691129988,1.65878548,2111.8,2111.2,0.45441931]
[1772691130187,1.65878548,2111.8,2111.2,1.6385639]
[1772691130597,1.65878548,2111.8,2111.2,0.45441931]
[1772691130807,1.65878548,2111.8,2111.2,1.63857503]
[1772691131018,0.47496126,2111.7,2111.2,0.45441931]
[1772691131178,1.6588829,2111.7,2111.2,1.63857182]
[1772691132124,1.65976246,2111.9,2111.3,0.45331931]
[1772691132409,0.47496126,2111.8,2111.2,0.0011]
[1772691133383,0.47496126,2111.6,2111.2,0.0011]
[1772691135514,0.47496126,2111.7,2111.2,0.0011]
[1772691135892,1.18386759,2111.8,2111.2,0.45441931]
[1772691136429,1.65882885,2111.8,2111.2,0.45441931]
[1772691137296,1.65882885,2111.8,2111.2,1.63853586]
[1772691137796,0.47496126,2111.8,2111.3,0.45331931]
[1772691138112,1.65878884,2111.8,2111.3,0.45331931]
[1772691138505,1.65878884,2111.8,2111.2,1.18521655]
[1772691138701,1.63971178,2111.8,2111.2,1.6834345]
[1772691139724,1.18479501,2111.9,2111.3,0.49821795]
[1772691140032,0.001,2111.9,2111.3,0.49821795]
[1772691140327,1.18478321,2111.9,2111.3,0.49821795]
[1772691140489,0.001,2111.9,2111.3,0.49821795]
[1772691140922,1.1847728,2111.9,2111.3,0.49821795]
[1772691141289,0.001,2111.9,2111.3,0.49821795]
[1772691141721,1.1847724,2111.9,2111.3,0.49821795]
[1772691141990,0.001,2111.9,2111.4,1.18404849]
[1772691142426,0.4568842,2111.9,2111.4,1.18404849]
[1772691142918,0.4568842,2111.9,2111.2,0.0011]
[1772691143099,0.4568842,2111.9,2111.2,1.18525775]
[1772691143821,0.4568842,2111.9,2111.2,0.0011]
[1772691144014,0.4558842,2111.6,2111.2,0.0011]
[1772691146420,1.18390428,2111.7,2111.2,0.0011]
[1772691146622,1.63978848,2111.7,2111.2,0.0011]
[1772691146791,0.45286593,2111.6,2111.2,0.0011]
[1772691148102,1.18399242,2111.5,2111.2,0.0011]
[1772691148902,1.63685835,2111.5,2111.2,0.0011]
[1772691150104,0.45286593,2111.7,2111.2,0.49492609]
[1772691150699,0.001,2111.9,2111.2,0.49492609]
[1772691152202,0.001,2111.9,2111.4,0.49382609]
[1772691153109,0.001,2111.9,2111.5,1.381]
[1772691153427,5.18837832,2112.2,2111.6,0.49382609]
[1772691153428,0.001,2112.2,2111.6,0.49382609]
[1772691154211,0.001,2112.2,2111.8,0.49382609]
[1772691156347,0.001,2112.2,2112.0,0.49382609]
[1772691157133,0.001,2112.2,2111.6,0.49382609]
[1772691157335,0.001,2112.2,2111.5,1.18399242]
[1772691157336,0.001,2112.2,2112.0,1.379]
[1772691158519,0.001,2112.2,2111.9,1.18375644]
[1772691158722,0.001,2112.2,2111.8,3.05660755]
[1772691160220,0.001,2112.2,2111.9,0.49382609]
[1772691160740,0.001,2112.2,2111.9,3.05657575]
[1772691161618,0.001,2112.2,2112.0,0.49382609]
[1772691162638,0.001,2112.2,2112.1,1.18365607]
[1772691162836,0.001,2112.2,2112.0,1.67749316]
[1772691163740,0.001,2112.2,2112.1,0.49382609]
[1772691164609,0.001,2112.5,2112.2,0.49382609]
[1772691164943,0.001,2112.5,2112.3,0.49382609]
[1772691165242,0.001,2112.8,2112.3,0.49382609]
[1772691165545,1.18427336,2112.8,2112.3,0.49382609]
[1772691165839,0.45286593,2112.7,2112.1,1.379]
[1772691166042,0.45286593,2112.7,2111.6,0.49382609]
[1772691166351,0.45286593,2112.7,2111.8,0.49382609]
[1772691166717,0.45286593,2112.7,2111.9,1.379]
[1772691166918,0.45286593,2112.5,2111.9,3.05654295]
[1772691167118,0.45286593,2112.5,2112.0,0.49382609]
[1772691167313,0.45286593,2112.5,2111.9,2.56271686]
[1772691167512,0.45286593,2112.5,2111.9,3.05654295]
[1772691167846,0.001,2112.3,2111.9,3.05654295]
[1772691168343,0.001,2112.3,2111.9,0.49382609]
[1772691168548,0.45386593,2112.3,2111.9,1.38]
[1772691168947,0.45623879,2112.1,2111.8,0.0011]
[1772691171034,0.45623879,2112.0,2111.8,0.0011]
[1772691173049,1.64000696,2111.9,2111.8,0.0011]
[1772691174141,0.45623879,2111.9,2111.8,0.0011]
[1772691174449,1.63988808,2112.2,2111.8,0.0011]
[1772691174830,0.45623879,2112.1,2111.8,0.0011]
[1772691175150,0.45623879,2112.1,2111.5,1.86927296]
[1772691175151,1.1836724,2112.1,2111.6,0.48617296]
[1772691176154,1.63991119,2112.1,2111.6,0.48617296]
[1772691177148,0.45623879,2112.0,2111.5,1.18508834]
[1772691177538,0.45623879,2112.0,2111.5,1.6712613]
[1772691178655,0.45623879,2112.0,2111.6,0.48617296]
[1772691178956,1.1836724,2112.1,2111.6,0.48617296]
[1772691179457,1.1836724,2112.1,2111.6,1.67007916]
[1772691179638,1.63985526,2112.2,2111.7,0.48617296]
[1772691180036,0.45623879,2112.1,2111.6,1.1839062]
[1772691180243,0.45623879,2112.1,2111.6,1.67007916]
[1772691180457,0.45623879,2112.1,2111.8,0.0011]
[1772691180950,1.64080409,2112.3,2111.8,0.48727296]
[1772691181556,1.64080409,2112.3,2111.8,1.67104538]
[1772691182056,0.45623879,2112.2,2111.8,1.18487242]
[1772691182364,0.45623879,2112.2,2111.8,1.18491818]
[1772691183183,0.45623879,2112.2,2111.8,1.67109114]
[1772691184049,0.001,2112.3,2111.8,1.67109114]
[1772691184254,0.45723879,2112.3,2111.8,1.67109114]
[1772691184965,0.45623879,2112.2,2111.8,0.48727296]
[1772691185265,0.45623879,2112.2,2111.8,0.0011]
[1772691185426,1.18365607,2112.1,2111.8,0.0011]
[1772691185740,0.45623879,2112.0,2111.8,0.0011]
[1772691185934,4.73441548,2112.2,2111.8,0.48727296]
[1772691185935,1.18360583,2112.2,2111.8,0.48727296]
[1772691186840,1.63984462,2112.2,2111.8,0.48727296]
[1772691187263,1.63984462,2112.2,2111.8,0.0011]
[1772691187458,0.45623879,2112.1,2111.8,0.0011]
[1772691187638,1.63995091,2112.0,2111.8,0.0011]
[1772691188040,0.45623879,2112.0,2111.8,0.0011]
[1772691188260,4.73526115,2112.3,2111.8,0.0011]
[1772691188261,1.64082346,2112.3,2111.8,0.48727296]
[1772691189531,0.45723879,2112.3,2111.9,1.18376817]
[1772691189948,0.001,2112.3,2112.0,0.48617296]
[1772691190471,0.001,2112.3,2111.8,0.48727296]
[1772691190637,1.64079381,2112.3,2111.9,0.48617296]
[1772691190831,0.45623879,2112.2,2111.8,0.0011]
[1772691191402,0.001,2112.3,2111.9,0.48617296]
[1772691191570,0.001,2112.3,2112.0,1.66988508]
[1772691192134,0.001,2112.3,2112.0,1.67098508]
[1772691192964,0.001,2112.3,2112.0,0.0011]
[1772691192965,0.45623879,2112.2,2112.0,0.0011]
[1772691193765,1.6398793,2112.2,2112.0,0.0011]
[1772691194331,0.45623879,2112.2,2112.0,0.0011]
[1772691194553,1.63984284,2112.2,2112.0,0.0011]
[1772691195068,0.45623879,2112.2,2112.0,0.0011]
[1772691195467,1.18458536,2112.3,2112.0,0.0011]
[1772691196168,0.001,2112.3,2112.0,0.0011]
[1772691196390,0.001,2112.3,2112.0,0.48727296]
[1772691199375,0.001,2112.3,2112.1,1.18365607]
[1772691200074,0.001,2112.3,2112.1,1.65639386]
[1772691200578,0.001,2112.3,2112.2,0.47273779]
[1772691201346,1.6761956,2112.8,2112.3,1.65626468]
[1772691201967,1.18427585,2112.8,2112.4,0.47273779]
[1772691202676,0.001,2112.8,2112.4,0.47273779]
[1772691202880,1.18426424,2112.8,2112.4,0.47273779]
[1772691203082,0.49191975,2112.7,2112.3,1.18352689]
[1772691203383,0.001,2112.8,2112.4,0.47273779]
[1772691203771,0.001,2112.8,2112.4,1.6561931]
[1772691204078,0.001,2112.8,2112.5,0.47273779]
[1772691204483,0.001,2112.6,2112.5,0.47273779]
[1772691205155,0.49291975,2112.8,2112.1,0.47273779]
[1772691205355,0.49291975,2112.8,2112.2,0.47273779]
[1772691205575,0.49291975,2112.8,2112.2,1.85273779]
[1772691205774,1.67523967,2112.7,2112.2,1.85273779]
[1772691205975,1.67523967,2112.7,2112.2,0.47273779]
[1772691206283,1.67523967,2112.7,2112.2,1.65633706]
[1772691206586,1.67618499,2112.8,2112.3,0.47273779]
[1772691207083,1.67618728,2112.8,2112.3,0.47273779]
[1772691208462,1.67618728,2112.8,2112.4,1.18348797]
[1772691208857,0.001,2112.8,2112.5,0.45557764]
[1772691209389,1.18427865,2112.8,2112.3,0.45557764]
[1772691209682,1.18427865,2112.8,2112.1,1.63920689]
[1772691209683,0.46726147,2112.7,2112.1,1.63920689]
[1772691209852,0.46726147,2112.7,2112.2,1.381]
[1772691210053,0.46726147,2112.7,2112.0,0.45667764]
[1772691210275,0.46726147,2112.7,2112.1,1.83657764]
[1772691210483,1.18337593,2112.6,2112.1,3.02021559]
[1772691210664,1.6506374,2112.6,2112.1,3.02021559]
[1772691210861,1.6506374,2112.6,2112.1,1.63921559]
[1772691211786,0.46726147,2112.5,2112.0,0.0011]
[1772691212654,1.18348797,2112.4,2112.0,0.45667764]
[1772691213679,1.65069536,2112.5,2112.0,0.45667764]
[1772691214872,4.73408969,2112.8,2112.0,0.45667764]
[1772691215078,0.46826147,2112.8,2112.2,0.45557764]
[1772691215287,0.46826147,2112.8,2112.1,1.18365607]
[1772691215587,0.46826147,2112.8,2112.1,1.63923371]
[1772691216183,0.001,2112.3,2112.2,0.45557764]
[1772691217788,0.001,2112.3,2112.0,1.64034367]
[1772691217963,0.001,2112.3,2112.1,0.45557764]
[1772691219872,0.001,2112.3,2112.2,1.18360003]
[1772691220672,0.001,2112.3,2112.2,1.63917767]
[1772691220964,0.001,2112.3,2112.2,3.02417767]
[1772691221286,0.001,2112.8,2112.2,3.02417767]
[1772691221456,0.001,2112.8,2112.3,0.45557764]
[1772691221881,0.001,2112.8,2112.4,1.18348797]
[1772691222080,0.001,2112.8,2112.5,0.45557764]
[1772691223068,0.001,2112.8,2112.7,0.45557764]
[1772691223600,1.65019575,2113.4,2112.7,0.45557764]
[1772691223795,1.18294039,2113.4,2112.7,0.45557764]
[1772691223968,1.65020186,2113.4,2112.7,0.45557764]
[1772691224502,0.46726147,2113.3,2112.8,1.18326391]
[1772691224787,0.46726147,2113.3,2112.9,0.45557764]
[1772691225894,0.46726147,2113.5,2112.9,0.45557764]
[1772691226297,1.6501081,2113.6,2113.0,1.63872955]
[1772691226796,0.46726147,2113.5,2113.0,0.45557764]
[1772691228307,1.65018945,2113.4,2113.0,1.18314364]
[1772691228514,0.001,2113.1,2112.9,2.57116652]
[1772691228718,0.001,2113.1,2112.8,0.45557764]
[1772691228877,0.001,2113.1,2112.7,1.183319]
[1772691228878,0.46210275,2113.1,2112.7,1.388]
[1772691229073,0.46210275,2113.1,2112.6,0.48677237]
[1772691229420,0.46210275,2113.1,2112.6,1.87477237]
[1772691229697,0.46210275,2113.1,2112.6,0.48677237]
[1772691229916,0.46210275,2113.1,2112.3,0.48677237]
[1772691230121,0.46210275,2113.1,2112.5,0.48677237]
[1772691230894,0.46210275,2113.1,2112.5,1.67016186]
[1772691230895,1.18315191,2113.0,2112.5,1.67016186]
[1772691231102,1.18414135,2113.1,2112.6,0.48677237]
[1772691231986,0.001,2113.1,2112.6,0.48677237]
[1772691232496,2.25302254,2113.8,2112.7,0.48677237]
[1772691232696,0.46110275,2113.7,2112.9,0.48677237]
[1772691232904,0.46110275,2113.5,2113.0,2.57210603]
[1772691233301,0.46110275,2113.5,2112.9,1.66994068]
[1772691233497,0.46110275,2113.5,2112.9,3.05894068]
[1772691233703,0.46110275,2113.5,2113.0,0.48677237]
[1772691234293,0.46110275,2113.7,2113.0,0.48677237]
[1772691234891,0.46110275,2113.7,2113.1,1.66986829]
[1772691235307,0.46110275,2113.7,2113.2,0.48677237]
[1772691235508,1.18274749,2113.8,2113.2,0.48677237]
[1772691236015,4.45863779,2113.9,2113.2,0.48677237]
[1772691236314,0.77811226,2113.9,2113.2,0.48677237]
[1772691236986,0.77811226,2113.9,2113.3,1.66975632]
[1772691237188,0.77811226,2113.9,2113.4,0.48677237]
[1772691237917,1.96078395,2113.9,2113.4,0.48677237]
[1772691238118,0.46110275,2113.8,2113.3,1.18298395]
[1772691239208,1.64381343,2113.8,2113.3,1.18298395]
[1772691239599,0.46110275,2113.8,2113.3,1.66975632]
[1772691240632,0.25700951,2113.9,2113.4,0.48677237]
[1772691241137,0.001,2113.7,2113.6,0.48677237]
[1772691241803,0.001,2114.0,2113.6,0.48677237]
[1772691242994,2.25302254,2115.1,2113.6,0.48677237]
[1772691243192,0.46110275,2114.8,2113.8,0.48677237]
[1772691243396,0.46110275,2114.8,2114.0,0.48677237]
[1772691243626,4.72798165,2115.1,2114.0,0.48677237]
[1772691243627,0.46110275,2115.1,2114.0,0.48677237]
[1772691243797,0.46110275,2115.1,2114.2,0.48677237]
[1772691244239,0.46110275,2115.1,2114.3,0.48677237]
[1772691245110,1.18203309,2115.0,2114.4,1.18236852]
[1772691245308,1.64313584,2115.0,2114.4,1.18236852]
[1772691246013,1.18196303,2115.2,2114.5,0.48677237]
[1772691246339,1.64400024,2115.3,2114.5,0.48677237]
[1772691246627,1.18289749,2115.3,2114.5,0.48677237]
[1772691246821,0.46110275,2115.2,2114.5,0.48677237]
[1772691247020,1.18289749,2115.3,2114.5,0.48677237]
[1772691247215,1.18289749,2115.3,2114.7,0.48677237]
[1772691247418,0.46110275,2115.5,2114.7,0.48677237]
[1772691247641,0.46110275,2115.5,2114.6,0.48677237]
[1772691248742,6.7431412,2116.0,2114.6,0.48677237]
[1772691248743,0.46110275,2116.0,2114.6,0.48677237]
[1772691249215,1.6425794,2116.0,2114.8,0.48677237]
[1772691249611,0.46110275,2115.9,2114.8,0.48677237]
[1772691249833,0.46110275,2115.9,2114.9,0.48677237]
[1772691250116,0.46110275,2115.8,2114.9,0.48677237]
[1772691250531,0.46110275,2115.8,2114.6,1.66898977]
[1772691250939,0.46110275,2115.8,2114.7,0.48677237]
[1772691251246,1.64274475,2115.7,2114.9,0.48677237]
[1772691251417,0.46110275,2115.6,2114.9,0.48677237]
[1772691252037,1.181642,2115.7,2114.9,0.48677237]
[1772691252216,1.64272766,2115.8,2114.9,0.48677237]
[1772691252545,1.64269572,2115.8,2114.9,0.48677237]
[1772691252760,0.46110275,2115.7,2114.9,0.48677237]
[1772691254147,1.64280061,2115.6,2114.9,0.48677237]
[1772691254356,1.64280061,2115.6,2114.9,1.66885719]
[1772691254839,0.001,2115.4,2114.9,1.66885719]
[1772691255216,0.001,2115.4,2114.9,0.48677237]
[1772691255418,0.001,2115.4,2114.9,1.66885918]
[1772691255846,0.001,2115.4,2115.0,0.48677237]
[1772691256244,0.001,2115.4,2115.1,1.66874958]
[1772691256417,1.18164795,2115.7,2115.1,1.79858163]
[1772691256852,1.64272944,2115.8,2115.1,1.79858163]
[1772691257151,1.64272944,2115.8,2115.2,0.48677237]
[1772691257539,1.18162669,2115.8,2115.2,0.48677237]
[1772691257849,1.64261988,2116.0,2115.2,0.48677237]
[1772691258152,1.64261988,2116.0,2115.4,1.66855267]
[1772691258322,1.64261988,2116.0,2115.4,1.74507617]
[1772691258517,1.64261988,2116.0,2115.5,0.48677237]
[1772691258518,1.18151713,2116.0,2115.5,0.48677237]
[1772691258747,0.46563271,2115.9,2115.4,0.07649857]
[1772691260221,1.18158616,2115.8,2115.4,0.07649857]
[1772691260423,1.64721887,2115.8,2115.1,0.48640234]
[1772691260625,0.46563271,2115.7,2114.9,0.48640234]
[1772691261731,0.46563271,2115.7,2115.0,0.08160299]
[1772691261932,0.46563271,2115.7,2115.0,0.56800533]
[1772691262334,1.18169786,2115.6,2115.0,1.74999588]
[1772691263052,1.64731445,2115.7,2115.0,1.74999588]
[1772691263243,1.18162514,2115.8,2115.1,0.48640234]
[1772691263746,6.44251144,2116.2,2115.1,0.48640234]
[1772691263747,1.64705135,2116.1,2115.1,0.48640234]
[1772691264253,0.46563271,2116.0,2115.1,0.48640234]
[1772691264441,1.64716302,2115.9,2115.2,1.18192133]
[1772691264638,0.46563271,2115.8,2115.1,0.48640234]
[1772691265035,0.46563271,2115.8,2115.1,1.66837732]
[1772691265235,0.46563271,2115.8,2115.2,0.48640234]
[1772691265756,0.46563271,2115.8,2115.0,1.75003387]
[1772691266360,1.64727471,2115.7,2115.0,0.56800533]
[1772691266554,0.46563271,2115.6,2114.9,0.48640234]
[1772691268542,1.65060406,2115.5,2115.2,0.0011]
[1772691269128,0.46885034,2115.4,2115.2,0.0011]
[1772691270551,1.18186545,2115.3,2115.2,0.0011]
[1772691271860,1.65071579,2115.3,2115.2,0.0011]
[1772691273961,1.18186545,2115.3,2115.2,0.0011]
[1772691274540,4.72707157,2115.5,2115.2,0.0011]
[1772691274955,0.46885034,2115.5,2115.2,0.0011]
[1772691275559,0.46885034,2115.5,2115.0,0.0011]
[1772691277068,0.46885034,2115.3,2115.0,0.0011]
[1772691277652,0.46885034,2115.3,2114.7,0.0011]
[1772691278262,0.46885034,2115.1,2114.7,0.0011]
[1772691279061,1.65088343,2115.0,2114.7,0.0011]
[1772691279263,0.46885034,2114.9,2114.7,0.0011]
[1772691279469,0.46885034,2114.9,2114.2,0.0011]
[1772691280287,0.46885034,2114.9,2114.2,0.47774486]
[1772691281082,0.46885034,2114.9,2114.2,0.0011]
[1772691281282,0.46885034,2114.7,2114.2,0.0011]
[1772691282118,1.18214488,2114.8,2114.6,0.0011]
[1772691282343,8.6863146,2115.2,2114.6,0.0011]
[1772691282344,5.19689992,2115.1,2114.6,0.0011]
[1772691282520,0.46885034,2115.0,2114.6,0.0011]
[1772691283216,1.18208898,2114.9,2114.6,0.0011]
[1772691285752,1.18203253,2115.1,2114.6,0.0011]
[1772691286255,0.46885034,2115.0,2114.6,0.0011]
[1772691287650,1.18208898,2114.9,2114.6,0.0011]
[1772691290652,1.64294603,2114.9,2114.6,0.0011]
[1772691293848,1.64294603,2114.9,2114.8,0.0011]
[1772691294663,1.64294603,2114.9,2114.6,0.0011]
[1772691296264,1.18220078,2114.7,2114.6,0.0011]
[1772691300976,0.46085705,2114.6,2114.2,0.0011]
[1772691301478,2.70205242,2115.2,2114.3,0.46706303]
[1772691301771,0.001,2115.2,2114.3,0.46706303]
[1772691302670,0.001,2115.2,2114.5,0.46706303]
[1772691302864,0.46185705,2115.2,2114.5,0.46706303]
[1772691303574,0.001,2115.2,2114.5,0.46706303]
[1772691304543,0.001,2115.2,2114.6,0.46706303]
[1772691304544,0.46185705,2115.2,2114.6,0.46706303]
[1772691305257,0.001,2115.2,2114.6,0.46706303]
[1772691305984,0.46185705,2115.2,2114.6,0.46706303]
[1772691306679,1.18197721,2115.1,2114.6,0.46706303]
[1772691307174,0.46085705,2114.9,2114.5,0.0011]
[1772691307347,0.46085705,2114.9,2114.2,0.0011]
[1772691307744,0.46085705,2114.9,2114.3,0.0011]
[1772691309250,0.46085705,2114.7,2114.3,0.0011]
[1772691309445,0.46085705,2114.7,2114.0,0.06396368]
[1772691309446,0.46085705,2114.6,2114.0,0.06396368]
[1772691310154,0.46085705,2114.6,2113.7,0.46816303]
[1772691310561,0.46085705,2114.6,2113.7,1.65091913]
[1772691310858,0.46085705,2114.6,2113.8,0.46706303]
[1772691311517,1.18227812,2114.6,2113.9,0.46706303]
[1772691312053,1.18214488,2114.8,2113.9,0.46706303]
[1772691313374,1.6429831,2114.9,2114.1,0.46706303]
[1772691314476,1.642955,2114.9,2114.1,0.46706303]
[1772691315390,1.642955,2114.9,2114.2,1.18248037]
[1772691315557,1.642955,2114.9,2114.3,0.46706303]
[1772691317555,1.734,2115.0,2114.5,0.46706303]
[1772691317963,2.91604462,2115.0,2114.5,0.46706303]
[1772691318781,0.001,2115.2,2114.5,0.46706303]
[1772691318962,0.47919431,2115.1,2114.3,0.49987755]
[1772691319161,0.47919431,2115.1,2114.3,1.68229684]
[1772691319781,0.47919431,2114.9,2114.3,1.68339684]
[1772691321287,0.47919431,2114.9,2114.3,1.68339527]
[1772691321487,0.47919431,2114.9,2114.3,0.0011]
[1772691321991,0.47919431,2114.7,2114.3,0.0011]
[1772691322284,1.18214488,2114.8,2114.3,0.0011]
[1772691322489,1.66132257,2114.9,2114.3,0.50097755]
[1772691322891,0.47919431,2114.9,2114.3,0.50097755]
[1772691323264,1.66128968,2114.9,2114.3,0.50097755]
[1772691323862,1.66128968,2114.9,2114.4,1.18236852]
[1772691326198,0.47919431,2114.9,2114.3,0.50097755]
[1772691326866,0.47919431,2114.9,2114.3,1.68339377]
[1772691327081,0.47919431,2114.9,2114.3,1.68339229]
[1772691328177,1.18214488,2114.8,2114.3,1.68339229]
[1772691328378,1.18214488,2114.8,2114.3,0.50097755]
[1772691328571,1.6560269,2114.8,2114.3,0.50097755]
[1772691328899,1.6560269,2114.8,2114.3,1.68340178]
[1772691329995,1.6560269,2114.8,2114.3,0.50097755]
[1772691330202,0.47388202,2114.7,2114.3,0.0011]
[1772691332299,1.65613871,2114.6,2114.3,0.0011]
[1772691332614,0.001,2115.0,2114.4,0.46230631]
[1772691332820,2.2528831,2115.2,2114.5,0.0011]
[1772691332821,1.65588363,2115.1,2114.5,0.0011]
[1772691332981,0.001,2114.9,2114.5,0.0011]
[1772691333391,0.47488202,2114.9,2114.5,0.0011]
[1772691334822,1.18214488,2114.8,2114.5,0.0011]
[1772691335675,1.65697361,2114.9,2114.5,0.0011]
[1772691336294,0.47388202,2114.8,2114.5,0.0011]
[1772691336909,1.6560828,2114.7,2114.5,0.0011]
[1772691337411,3.3920828,2114.7,2114.5,0.0011]
[1772691337588,0.47388202,2114.6,2114.5,0.0011]
[1772691337788,0.47388202,2114.6,2114.3,0.0011]
[1772691338883,0.47388202,2114.4,2114.0,0.0011]
[1772691341014,0.47388202,2114.2,2114.0,0.0011]
[1772691341184,0.47388202,2114.1,2114.0,0.0011]
[1772691343395,1.65641832,2114.1,2114.0,0.0011]
[1772691343989,1.65641832,2114.1,2113.8,0.0011]
[1772691345088,0.47388202,2114.0,2113.8,0.0011]
[1772691345491,1.18264818,2113.9,2113.8,0.0011]
[1772691347202,1.18264818,2113.9,2113.5,0.46230631]
[1772691347409,1.739,2113.8,2113.3,0.46230631]
[1772691347615,2.21288202,2113.8,2113.3,1.64528902]
[1772691347816,2.21288202,2113.8,2113.3,1.64528563]
[1772691348131,2.21288202,2113.8,2113.3,0.46230631]
[1772691348700,0.48856105,2113.7,2113.3,0.46230631]
[1772691348935,0.48856105,2113.7,2113.2,0.05417937]
[1772691349417,1.67136886,2113.7,2113.2,1.2372132]
[1772691349722,1.67136886,2113.7,2113.2,1.23721868]
[1772691350724,1.18280781,2113.7,2113.2,1.72156381]
[1772691351025,1.18280781,2113.7,2113.2,0.53852458]
[1772691351200,1.18280781,2113.7,2113.2,1.72155963]
[1772691352326,6.95849309,2113.8,2113.3,0.48434521]
[1772691352327,1.739,2113.8,2113.3,0.48434521]
[1772691352823,2.92170836,2113.8,2113.3,0.48434521]
[1772691353500,1.739,2113.8,2113.3,0.48434521]
[1772691353695,1.739,2113.8,2113.4,1.18292798]
[1772691353900,1.739,2113.8,2113.5,0.48434521]
[1772691354930,0.0755694,2113.8,2113.5,0.22591519]
[1772691355113,1.742,2114.1,2113.5,0.22591519]
[1772691355313,2.23056105,2114.1,2113.5,0.22591519]
[1772691355525,1.742,2114.1,2113.5,0.22591519]
[1772691356023,1.742,2114.1,2113.7,0.22591519]
[1772691358116,1.742,2114.1,2113.8,1.18270413]
[1772691358710,1.742,2114.1,2113.8,1.40861932]
[1772691358932,1.742,2114.1,2113.8,0.22591519]
[1772691359227,1.742,2114.1,2113.7,1.18272322]
[1772691359814,1.742,2114.1,2113.7,1.40863841]
[1772691360009,1.742,2114.1,2113.8,0.22591519]
[1772691360330,1.742,2114.4,2114.0,0.22591519]
[1772691361104,0.001,2114.8,2114.0,0.22591519]
[1772691361414,1.18314805,2114.8,2114.0,0.22591519]
[1772691361609,0.48856105,2114.7,2114.0,0.22591519]
[1772691362453,1.67081774,2114.6,2114.1,1.1825363]
[1772691362610,0.48856105,2114.5,2114.1,1.1825363]
[1772691362940,4.72900486,2114.7,2114.1,1.1825363]
[1772691362941,0.48856105,2114.7,2114.1,1.1825363]
[1772691363636,0.48856105,2114.7,2114.1,1.40845149]
[1772691364134,0.48856105,2114.7,2113.9,4.73056124]
[1772691364531,0.48856105,2114.5,2113.9,1.18264818]
[1772691364740,0.48856105,2114.5,2113.6,0.22591519]
[1772691364741,0.48856105,2114.4,2113.6,0.22591519]
[1772691365098,1.742,2114.5,2113.6,0.22591519]
[1772691366718,2.92431527,2114.5,2113.8,0.22591519]
[1772691366923,0.48856105,2114.4,2113.6,0.22591519]
[1772691367110,0.48856105,2114.4,2113.5,4.73131095]
[1772691367111,0.48856105,2114.4,2113.5,1.18287201]
[1772691367504,0.48856105,2114.4,2113.5,1.4087872]
[1772691367705,0.48856105,2114.4,2113.6,0.22591519]
[1772691368732,0.48856105,2114.4,2113.8,0.0011]
[1772691368733,0.48856105,2114.2,2113.8,0.0011]
[1772691369732,4.72966707,2114.4,2113.8,0.22701519]
[1772691369733,0.48856105,2114.4,2113.8,0.22701519]
[1772691370613,1.743,2114.5,2113.8,0.22701519]
[1772691370936,0.48856105,2114.4,2113.9,1.40856337]
[1772691371332,0.48856105,2114.4,2113.8,1.18377182]
[1772691372418,0.48856105,2114.4,2113.9,0.22591519]
[1772691372933,1.67093517,2114.4,2113.9,0.22591519]
[1772691373136,1.67093517,2114.4,2113.9,1.1826054]
[1772691373434,0.48856105,2114.3,2113.8,1.18378184]
[1772691374217,2.92534211,2114.5,2113.8,1.40969703]
[1772691374530,2.23156105,2114.5,2113.9,0.22591519]
[1772691374911,1.743,2114.5,2113.9,0.22591519]
[1772691375612,1.743,2114.5,2114.0,1.40850743]
[1772691375818,1.743,2114.5,2114.1,0.22591519]
[1772691376214,0.001,2114.8,2114.1,0.22591519]
[1772691377539,0.001,2114.9,2114.2,0.22491519]
[1772691377844,0.001,2114.9,2114.4,0.22491519]
[1772691378139,0.48856105,2115.5,2114.4,0.22491519]
[1772691378514,2.22856105,2115.7,2114.4,0.22491519]
[1772691378709,3.41020501,2115.7,2114.4,0.22491519]
[1772691379624,1.74,2115.7,2114.6,0.22491519]
[1772691380120,0.47641952,2115.6,2114.6,0.22491519]
[1772691380439,0.47641952,2115.6,2114.8,0.22491519]
[1772691381818,1.18156727,2115.9,2115.0,0.22491519]
[1772691382024,0.47641952,2115.9,2115.0,0.22491519]
[1772691382222,0.001,2115.5,2115.0,0.22491519]
[1772691384034,0.001,2115.5,2115.1,1.4068924]
[1772691384744,0.47741952,2115.5,2115.0,1.18198943]
[1772691384945,0.47741952,2115.5,2114.8,1.18212046]
[1772691385126,0.47741952,2115.5,2114.4,1.40728371]
[1772691385831,0.47641952,2115.4,2114.4,1.40728371]
[1772691386042,0.47641952,2115.2,2114.5,0.22491519]
[1772691387532,1.18186545,2115.3,2114.5,0.22491519]
[1772691387847,0.49793399,2115.2,2114.4,1.18236852]
[1772691388023,0.49793399,2115.0,2114.3,1.18242444]
[1772691388632,0.49793399,2115.0,2114.2,1.18243599]
[1772691388954,0.49793399,2115.0,2114.1,4.95607638]
[1772691388955,0.49793399,2115.0,2114.1,1.18360073]
[1772691390036,0.49793399,2114.8,2114.1,0.0011]
[1772691392560,0.49793399,2114.6,2114.1,0.0011]
[1772691392764,1.67996708,2115.0,2114.1,0.22601519]
[1772691393563,0.49793399,2115.0,2114.1,0.22601519]
[1772691393864,1.67980509,2115.3,2114.2,0.22491519]
[1772691394245,1.67980209,2115.3,2114.4,0.22491519]
[1772691394562,1.67980209,2115.3,2114.5,1.1823126]
[1772691394736,0.49793399,2115.2,2114.5,1.1823126]